[Event "13th Chennai Open 2022"]
[Site "Chennai"]
[Date "2022.06.25"]
[Round "9.15"]
[White "Nguyen, Duc Hoa"]
[Black "Priyankara, Chamil"]
[Result "1-0"]
[ECO "A64"]
[WhiteElo "2398"]
[BlackElo "1938"]
[Annotator "TA"]
[PlyCount "85"]
[EventDate "2022.06.19"]
[EventType "swiss"]
[EventCountry "IND"]
[SourceTitle "playchess.com"]
[Source "ChessBase"]
[SourceQuality "1"]
[TimeControl "5400+30"]

{[%evp 23,85,1,22,21,45,34,43,0,0,0,6,7,19,0,2,0,46,7,58,53,61,57,55,43,41,55,79,20,23,23,10,16,10,23,12,16,5,11,76,69,67,85,65,60,191,191,191,191,191,191,247,177,166,136,136,8,85,85,61,70,2741,1999,5641,2442]} 1. d4 {[%emt 0:00:04]} Nf6 {[%emt 0:03:51]} 2. c4 {[%emt 0:00:06]} g6 {[%emt 0:00:50]} 3. Nc3 {[%emt 0:00:13]} Bg7 {[%emt 0:00:07]} 4. Nf3 {[%emt 0:00:35]} O-O {[%emt 0:00:45]} 5. g3 {[%emt 0:00:06]} d6 {[%emt 0:00:43]} 6. Bg2 {[%emt 0:00:11]} c5 {[%emt 0:00:22]} 7. d5 {[%emt 0:00:30]} e6 {[%emt 0:01:11]} 8. O-O {[%emt 0:00:06]} exd5 {[%emt 0:00:46]} 9. cxd5 {[%emt 0:00:06]} a6 {[%emt 0:00:03]} 10. a4 {[%emt 0:00:07]} Re8 {[%emt 0:00:17]} 11. Nd2 {[%emt 0:00:17] 11.Re1 deserves study.} Nbd7 {[%emt 0:00:14][%cal Bb8d7,Bd7b6,Bb6c4][%mdl 32]} 12. h3 {[%emt 0:00:20]} Nh5 {[%emt 0:00:39]} (12... Rb8 $5 {[%cal Rb7b5]}) 13. a5 {[%emt 0:07:30] A64: Modern Benoni: Fianchetto Variation: 9...Nbd7 10 Nd2 a6 11 a4 Re8.} b5 {[%emt 0:09:40] Prevents Nc4.} 14. axb6 $1 {[%emt 0:02:32]} Nxb6 {[%emt 0:00:39]} 15. Nb3 {[%emt 0:00:58] White is slightly better.} Nc4 $1 {[%emt 0:08:23] [#]} 16. Ra4 $146 {[%emt 0:02:13]} ({Predecessor:} 16. Qd3 Ne5 17. Qc2 Bd7 18. Na5 Bb5 19. Kh2 Qb6 20. f4 Nd7 21. Re1 c4 22. e4 {1-0 (39) Fominykh,M (2259)-Voit,D (2340) Moscow 2019}) 16... Nb6 {[%emt 0:00:14]} 17. Ra2 {[%emt 0:05:29]} Nc4 $1 {[%emt 0:09:23] Against Na5} 18. Qd3 {[%emt 0:03:18]} Ne5 {[%emt 0:00:25]} 19. Qc2 {[%emt 0:00:10]} Bf5 {[%emt 0:04:13]} (19... a5 $11) 20. Qd1 {[%emt 0:13:31]} (20. e4 $5 {[%cal Re4f5]} Bd7 21. g4 $11) 20... Bd7 {[%emt 0:03:20]} (20... a5 $11) 21. Na5 $14 {[%emt 0:00:48]} Bb5 {[%emt 0:00:32]} 22. Qc2 {[%emt 0:06:08]} f5 {[%emt 0:01:40][%cal Bf7f5,Bf5f4,Bf4f3][%mdl 32]} 23. Rd1 {[%emt 0:04:16]} Qd7 {[%emt 0:06:52]} 24. b3 {[%emt 0:09:01]} Qf7 {[%emt 0:07:29]} 25. Nc6 {[%emt 0:03:54]} (25. e3 $1 $16) 25... f4 $11 {[%emt 0:03:43]} 26. g4 {[%emt 0:26:54]} f3 {[%emt 0:00:26] ...fxe2 is the strong threat.} 27. Nxb5 {[%emt 0:02:59]} axb5 {[%emt 0:00:47]} 28. Rxa8 {[%emt 0:00:07] Dancing on a razor blade.} Rxa8 {[%emt 0:00:04]} 29. exf3 {[%emt 0:01:05] Threatens to win with Nxe5.} Nf4 {[%emt 0:01:21]} 30. Qe4 {[%emt 0:02:27]} Ra1 {[%emt 0:12:55]} (30... g5 $11) 31. Rf1 $1 $16 {[%emt 0:00:18]} Ned3 {[%emt 0:05:47]} (31... Nxd5 $2 32. Qxd5 $3 {[%mdl 512]} (32. Nd8 Nc3 $14) 32... Qxd5 33. Ne7+ Kf7 34. Nxd5 $18) 32. Bxf4 {[%emt 0:03:03]} Nxf4 {[%emt 0:06:00]} 33. Nd8 $36 {[%emt 0:00:10][%mdl 2048] White has some pressure.} Qd7 {[%emt 0:02:54]} ({Better is} 33... Rxf1+ $14 34. Bxf1 Qf6) 34. Ne6 $18 {[%emt 0:00:29]} ({Weaker is} 34. Qxf4 Qxd8 35. Rxa1 Bxa1 $14) 34... Nxg2 {[%emt 0:03:01]} (34... Rxf1+ $2 35. Bxf1 Nxe6 36. dxe6 $18) 35. Rxa1 {[%emt 0:01:28]} ({Don't do} 35. Kxg2 Ra3 $16) 35... Bxa1 {[%emt 0:00:11]} 36. Kxg2 {[%emt 0:00:03][%mdl 4096] Endgame KQB-KQN} Qc8 {[%emt 0:01:15]} (36... b4 $142 37. f4 Bg7) 37. Qe1 {[%emt 0:02:02]} Bf6 {[%emt 0:02:24]} 38. g5 {[%emt 0:00:24]} Bh8 {[%emt 0:00:22] [#]} 39. Nf4 {[%emt 0:05:24] White is more active.} ({White should play} 39. Qa5 $1 $16 {[%cal Ra5b6]} Qb8 40. Qa6) 39... c4 {[%emt 0:00:20]} (39... Be5 $1 $11 {keeps the balance.} 40. Ne6 c4) 40. bxc4 $16 {[%emt 0:00:12]} bxc4 {[%emt 0:00:02]} 41. Qe7 {[%emt 0:00:36]} Be5 $2 {[%emt 0:05:27][%mdl 8192] [#]} (41... c3 $14) 42. Ne6 $1 $18 {[%emt 0:00:15] Strongly threatening Nd8.} Qa8 {[%emt 0:00:45]} 43. Nd8 {[%emt 0:00:27] Weighted Error Value: White=0.16 (very precise) /Black=0.26 (precise)} 1-0

[Event "13th Chennai Open 2022"]
[Site "Chennai"]
[Date "2022.06.25"]
[Round "9.16"]
[White "Ghosh Samriddhaa"]
[Black "Hari Madhavan N B"]
[Result "0-1"]
[ECO "B36"]
[WhiteElo "1844"]
[BlackElo "2374"]
[Annotator "TA"]
[PlyCount "104"]
[EventDate "2022.06.19"]
[EventType "swiss"]
[EventCountry "IND"]
[SourceTitle "playchess.com"]
[Source "ChessBase"]
[SourceQuality "1"]
[TimeControl "5400+30"]

{[%evp 23,104,31,59,17,18,16,22,17,12,15,16,14,17,10,15,0,0,0,11,-18,-31,-81,-80,-81,-91,-199,-209,-222,-181,-195,-175,-175,-156,-244,-223,-290,-289,-274,-293,-292,-282,-612,-323,-313,-305,-386,-312,-555,-552,-560,-550,-592,-443,-1037,-609,-6211,-776,-977,-880,-2050,-616,-610,-582,-805,-800,-774,-747,-29983,-979,-1154,-1772,-1175,-1081,-29975,-29973,-29973,-29974,-29974,-29975,-29974,-29974,-29951,-6029]} 1. e4 {[%emt 1:31:00]} c5 {[%emt 0:00:06]} 2. Nf3 {[%emt 0:00:00]} g6 {[%emt 0:00:04]} 3. d4 {[%emt 0:00:00]} cxd4 {[%emt 0:00:05]} 4. Nxd4 {[%emt 0:00:00]} Nc6 {[%emt 0:00:06]} 5. c4 {[%emt 0:00:00]} Nf6 {[%emt 0:00:45]} 6. Nc3 {[%emt 0:00:00]} d6 {[%emt 0:00:12]} 7. Be2 {[%emt 0:00:00]} Nxd4 {[%emt 0:00:08]} 8. Qxd4 {[%emt 0:00:00]} Bg7 {[%emt 0:00:03]} 9. Be3 {[%emt 0:00:00]} O-O {[%emt 0:00:09]} 10. Qd2 {[%emt 0:00:00]} a5 {[%emt 0:00:08]} 11. O-O {[%emt 0:00:00]} a4 {[%emt 0:00:37]} 12. Bd4 {[%emt 0:00:00] outshines the older 12.f3.} Be6 {[%emt 0:02:04]} 13. Qe3 {[%emt 0:00:00] B36: Sicilian: Maroczy Bind: Gurgenidze System.} Nd7 {[%emt 0:13:05]} 14. Bxg7 {[%emt 0:00:00]} Kxg7 {[%emt 0:00:35]} 15. Nd5 {[%emt 0:00:00] The position is equal.} Bxd5 {[%emt 0:01:09]} 16. exd5 {[%emt 0:00:00]} Qb6 {[%emt 0:01:05]} 17. Qc3+ {[%emt 0:00:00] [#]} Kg8 $146 {[%emt 0:00:31]} ({Predecessor:} 17... Ne5 18. Kh1 Qa5 19. Qd4 Qa7 20. Qc3 Qa5 21. Qd4 Qa7 22. Qc3 Qa5 {½-½ (22) Azarov,S (2571)-Timofeev,A (2658) Dresden 2007}) 18. Rae1 {[%emt 0:00:00]} Qc5 {[%emt 0:10:28]} 19. Kh1 {[%emt 0:00:00]} Rfe8 {[%emt 0:02:22]} 20. f4 {[%emt 0:00:00]} Rac8 {[%emt 0:02:08]} 21. Bd3 {[%emt 0:00:00]} b5 {[%emt 0:08:53][%cal Rb5c4]} 22. f5 {[%emt 0:05:06]} (22. b4 $15 axb3 23. axb3) 22... Ne5 $17 {[%emt 0:02:02][%cal Rb5c4] White is on the road to losing.} 23. fxg6 {[%emt 0:03:04]} hxg6 {[%emt 0:00:09][%cal Rb5c4]} 24. Bb1 {[%emt 0:02:44]} (24. Re4 $17) 24... Qxc4 $19 {[%emt 0:01:09]} 25. Qd2 {[%emt 0:00:23] [#] And now Rf4 would win.} Kg7 {[%emt 0:00:19]} 26. Rf4 {[%emt 0:00:21]} Qc5 {[%emt 0:00:19]} 27. h3 {[%emt 0:00:40]} a3 {[%emt 0:01:52]} 28. bxa3 {[%emt 0:00:28]} (28. Rb4 $17) 28... Qxa3 {[%emt 0:00:10]} 29. Qf2 {[%emt 0:00:39][%cal Oe1e5]} Rc1 {[%emt 0:00:52]} 30. Kh2 {[%emt 0:00:25][%cal Oe1e5] [#] Black must now prevent Rxe5!} Rxe1 {[%emt 0:00:11]} 31. Qxe1 {[%emt 0:00:02]} Rc8 {[%emt 0:00:12] Hoping for ...Rc1.} 32. Rb4 $2 {[%emt 0:01:02]} (32. Qd2) 32... Rc5 {[%emt 0:00:37] Threatens to win with ...Rc3.} 33. Rb3 {[%emt 0:00:24]} Qa8 {[%emt 0:00:09]} 34. Qh4 {[%emt 0:00:30]} f6 {[%emt 0:00:28]} 35. Be4 $2 {[%emt 0:00:35]} (35. Qd4) 35... Qxa2 {[%emt 0:00:45]} 36. Qg3 {[%emt 0:00:07]} Qa4 {[%emt 0:00:19]} 37. Re3 {[%emt 0:00:48]} Rc7 {[%emt 0:00:44]} 38. h4 {[%emt 0:00:20]} (38. Bd3 $142 g5 39. Be2) 38... Qd1 {[%emt 0:00:09] ...Ng4+ is the strong threat.} 39. Bf5 {[%emt 0:00:43] Prevents Ng4+.} Qh5 {[%emt 0:00:18]} (39... Rc1 $142 40. Re1 Qxe1 41. Qxe1 Rxe1) 40. Be6 {[%emt 0:00:13]} Rc4 {[%emt 0:00:08]} 41. Ra3 {[%emt 0:00:45]} Qxh4+ {[%emt 0:00:16]} (41... f5 $142 42. Bxf5 b4) 42. Qxh4 {[%emt 0:00:11]} Rxh4+ {[%emt 0:00:06][%mdl 4096] Endgame KRB-KRN} 43. Kg3 {[%emt 0:00:17]} Ra4 {[%emt 0:00:05]} 44. Rb3 {[%emt 0:01:09]} b4 {[%emt 0:00:08] ( -> ...Ra3)} 45. Kh4 {[%emt 0:00:30]} f5 {[%emt 0:00:18]} (45... Ra3 $142 46. Rg3 Rxg3 47. Kxg3 b3 48. Kh3 b2 49. Kg3 b1=Q 50. Kf2 Qc2+ 51. Kg1 f5 52. Bxf5 gxf5 53. Kf1 Ng4 54. Ke1 Qf2+ 55. Kd1 Ne3+ 56. Kc1 Qc2#) 46. Kg5 {[%emt 0:00:22]} Ra2 {[%emt 0:00:17]} 47. g4 {[%emt 0:00:39]} Rg2 {[%emt 0:00:19][%csl Ge5,Gf5][%cal Rg2g4]} 48. Rxb4 {[%emt 0:00:17]} Rxg4+ {[%emt 0:00:07] Black mates.} 49. Rxg4 {[%emt 0:00:07]} Nxg4 {[%emt 0:00:05]} 50. Bd7 {[%emt 0:00:33]} Ne5 {[%emt 0:00:06]} 51. Be6 {[%emt 0:00:39]} Nf7+ {[%emt 0:00:10]} 52. Kf4 {[%emt 0:00:43]} Kf6 {[%emt 0:00:07] Weighted Error Value: White=1.04/Black=0.68} 0-1

[Event "13th Chennai Open 2022"]
[Site "Chennai"]
[Date "2022.06.25"]
[Round "9.17"]
[White "Karthikeyan, P.."]
[Black "Arpith S Bijoy"]
[Result "1-0"]
[ECO "B12"]
[WhiteElo "2361"]
[BlackElo "1713"]
[Annotator "TA"]
[PlyCount "81"]
[EventDate "2022.06.19"]
[EventType "swiss"]
[EventCountry "IND"]
[SourceTitle "playchess.com"]
[Source "ChessBase"]
[SourceQuality "1"]
[TimeControl "5400+30"]

{[%evp 9,81,33,45,38,45,43,134,119,130,120,141,147,133,144,137,121,136,44,227,227,222,219,287,281,285,261,276,269,248,222,222,218,216,218,225,218,238,229,229,222,228,229,199,210,311,303,352,310,363,358,350,265,696,691,650,632,354,995,977,979,907,877,3080,3078,2677,2258,1950,1505,2669,5481,3600,2605,1904,1647]} 1. e4 {[%emt 0:03:22]} c6 {[%emt 0:00:18]} 2. d4 {[%emt 0:00:08]} d5 {[%emt 0:00:13]} 3. e5 {[%emt 0:00:07]} c5 {[%emt 0:00:59]} 4. dxc5 {[%emt 0:01:49]} Nc6 {[%emt 0:01:27]} 5. Nf3 {[%emt 0:03:07]} e6 {[%emt 0:05:53]} 6. Be3 {[%emt 0:00:52] B12: Caro-Kann: Advance Variation.} Nge7 {[%emt 0:08:54]} 7. Bd3 {[%emt 0:01:40]} Qc7 {[%emt 0:06:53]} ({Better is} 7... Ng6 $14) 8. Nc3 $16 {[%emt 0:03:30][%cal Bb1c3,Bc3a4,Ba4b6][%mdl 32] White is clearly better.} a6 {[%emt 0:11:19] Inhibits Nb5.} 9. O-O {[%emt 0:06:20] [#] White is more active.} Ng6 $146 {[%emt 0:08:59]} ({Predecessor:} 9... Nxe5 10. Nxe5 Qxe5 11. Bd4 Qc7 12. Re1 Bd7 13. b4 f6 14. Qh5+ Kd8 15. Qf7 e5 16. Nxd5 Nxd5 17. Qxd5 {1-0 (28) Idani,P (2638)-Chapman,T (2240) Reykjavik 2022}) 10. Re1 {[%emt 0:03:46]} Be7 {[%emt 0:04:24]} 11. Na4 {[%emt 0:04:18]} Bd7 {[%emt 0:06:08]} 12. c4 {[%emt 0:03:24]} d4 {[%emt 0:03:13] [#]} 13. Bd2 {[%emt 0:04:58]} (13. Nxd4 Rd8 $16) (13. Bxd4 $6 Nxd4 14. Nxd4 Nxe5 $11) (13. Bg5 $1 $16) 13... O-O $2 {[%emt 0:08:55] This costs Black the game.} ({Black should try} 13... Ncxe5 $14 14. Nxe5 Nxe5) 14. Nb6 $18 {[%emt 0:04:57]} Rad8 {[%emt 0:05:55]} 15. b4 {[%emt 0:00:15]} Ncxe5 {[%emt 0:05:46]} 16. Nxe5 {[%emt 0:03:43]} Nxe5 {[%emt 0:00:09] [#]} 17. Bf4 $1 {[%emt 0:00:35]} f6 {[%emt 0:02:03]} 18. Qh5 {[%emt 0:02:42]} g6 {[%emt 0:01:16]} 19. Bxe5 {[%emt 0:02:46]} fxe5 {[%emt 0:01:00]} 20. Qxe5 $40 {[%emt 0:07:57][%mdl 128] Black is in trouble.} Qxe5 {[%emt 0:01:18]} 21. Rxe5 {[%emt 0:00:02]} Kf7 {[%emt 0:04:32]} 22. Rae1 {[%emt 0:00:42]} Bf6 {[%emt 0:03:32]} 23. Nxd7 {[%emt 0:00:16]} Rxd7 {[%emt 0:00:07]} 24. Rxe6 {[%emt 0:00:05]} a5 {[%emt 0:02:28]} 25. a3 {[%emt 0:09:03][%cal Ba2a3,Ba3b4][%mdl 32]} ({Don't take} 25. bxa5 Ra8 26. a6 Rxa6 27. Rxa6 bxa6) 25... axb4 {[%emt 0:03:05]} 26. axb4 {[%emt 0:00:02]} Rc7 {[%emt 0:02:24]} (26... Ra8 $142 27. Rb6 Ra3) 27. Rb6 {[%emt 0:01:47]} Ra8 {[%emt 0:01:01]} 28. Be4 {[%emt 0:00:40] And now Bd5+ would win.} Ra7 {[%emt 0:00:17]} 29. g3 {[%emt 0:01:36]} Kg7 {[%emt 0:00:15]} 30. Bd5 {[%emt 0:00:23]} h5 $2 {[%emt 0:01:43]} (30... d3 31. Rd1 Ra1 32. Rxa1 Bxa1 33. Bxb7 (33. Rxb7 Rxb7 34. Bxb7 Bc3 $18) 33... Rd7) 31. Ree6 {[%emt 0:01:29]} Rf7 {[%emt 0:00:56]} 32. Red6 {[%emt 0:03:53]} Ra1+ {[%emt 0:00:25]} 33. Kg2 {[%emt 0:00:01]} Rf8 {[%emt 0:00:07] White is clearly winning.} 34. Rxb7+ {[%emt 0:00:45]} Kh6 {[%emt 0:00:02]} 35. h4 {[%emt 0:04:31] Threatens to win with Rdd7.} Ra2 {[%emt 0:01:12]} 36. Rdd7 {[%emt 0:00:57][%csl Gb7][%cal Rd7h7]} Rh8 {[%emt 0:00:24] Prevents Rh7+.} 37. Rf7 {[%emt 0:01:10]} Be5 {[%emt 0:00:42]} 38. Rbe7 {[%emt 0:01:16]} Re2 {[%emt 0:00:36]} 39. Bf3 {[%emt 0:01:04]} Re1 {[%emt 0:00:13]} 40. c6 {[%emt 0:00:51][%cal Bc5c6,Bc6c7][%mdl 32] Threatening mate with c7.} d3 {[%emt 0:00:28]} 41. c7 {[%emt 0:00:10] Weighted Error Value: White=0.12 (very precise) /Black=0.48} 1-0

[Event "13th Chennai Open 2022"]
[Site "Chennai"]
[Date "2022.06.25"]
[Round "9.18"]
[White "Abdyjapar, Asyl"]
[Black "Shree Ganesh Muthu Annamalai"]
[Result "1/2-1/2"]
[ECO "E94"]
[WhiteElo "2346"]
[BlackElo "1803"]
[Annotator "TA"]
[PlyCount "85"]
[EventDate "2022.06.19"]
[EventType "swiss"]
[EventCountry "IND"]
[SourceTitle "playchess.com"]
[Source "ChessBase"]
[SourceQuality "1"]
[TimeControl "5400+30"]

{[%evp 16,85,47,42,47,46,47,47,55,44,54,51,54,44,47,46,64,20,26,28,31,0,12,-93,-109,-157,-151,-122,-82,-75,-79,-80,-21,-18,-21,-83,-85,-81,-73,-104,-97,-97,-47,-60,0,-45,-55,-68,-67,-66,-62,-60,-59,-115,0,0,0,0,0,0,0,0,0,0,0,0,0,0,0,0,0,0]} 1. d4 {[%emt 0:08:13]} d6 {[%emt 1:31:00]} 2. c4 {[%emt 0:00:16]} Nf6 {[%emt 0:00:00]} 3. Nc3 {[%emt 0:00:05]} Nbd7 {[%emt 0:00:00]} 4. Nf3 {[%emt 0:00:06]} g6 {[%emt 0:00:00]} 5. e4 {[%emt 0:00:17]} e5 {[%emt 0:00:00]} 6. Be2 {[%emt 0:03:04]} Bg7 {[%emt 0:00:00]} 7. O-O {[%emt 0:00:30]} O-O {[%emt 0:00:00]} 8. Be3 {[%emt 0:00:48]} Qe7 {[%emt 0:00:00]} 9. d5 {[%emt 0:00:33]} Ng4 {[%emt 0:00:00] 9...c5 gains popularity. E94: King's Indian: Classical: 6 Be2 e5 7 0-0: Various Black 7th moves.} 10. Bg5 {[%emt 0:00:15][%cal Be3g5,Bg5h4,Bh4g3][%mdl 32]} f6 {[%emt 0:00:00]} 11. Bh4 {[%emt 0:00:11]} Nh6 {[%emt 0:00:00][%cal Bg4h6,Bh6f5,Bf5e3][%mdl 32] White is slightly better. is the legacy move (11...h5).} 12. Nd2 {[%emt 0:02:12]} g5 {[%emt 0:00:00]} 13. Bg3 {[%emt 0:00:04]} f5 {[%emt 0:00:00]} 14. exf5 {[%emt 0:00:41] [#]} Nxf5 $146 {[%emt 0:00:00]} ({Predecessor:} 14... Nf6 15. Bd3 Nxf5 16. Nde4 Nxe4 17. Bxe4 Bd7 18. Qd3 h6 19. f3 Kh8 20. Bf2 a6 {1-0 (42) Popov,V (2430)-Gelman,A (2415) Krasnodar 1997}) 15. Nde4 {[%emt 0:00:38]} h6 {[%emt 0:00:00]} 16. Bd3 {[%emt 0:03:18]} Nf6 {[%emt 0:00:00]} 17. Nxf6+ {[%emt 1:17:49]} Qxf6 {[%emt 0:00:00]} 18. Ne4 {[%emt 0:00:00]} Qg6 {[%emt 0:00:00]} 19. f3 {[%emt 0:00:00]} (19. Qd2 $11 {keeps the balance.}) 19... Ne3 $1 $17 {[%emt 0:00:00][%csl LRd1,LRf1]} 20. Qe2 {[%emt 0:00:00]} (20. Qb3 $142) 20... Nxf1 {[%emt 0:00:00]} 21. Rxf1 {[%emt 0:00:00]} Bf5 {[%emt 0:00:00]} 22. h3 {[%emt 0:00:00]} h5 {[%emt 0:00:00]} 23. Be1 {[%emt 0:00:00]} Bxe4 {[%emt 0:00:00]} (23... g4 $17 24. fxg4 hxg4 25. Rxf5 Rxf5 26. hxg4 Rf4) 24. Bxe4 $11 {[%emt 0:00:00]} Qf6 {[%emt 0:00:00][%cal Og5g4]} 25. g4 {[%emt 0:00:00]} (25. Bd2 $11) 25... hxg4 $17 {[%emt 0:00:00]} 26. hxg4 {[%emt 0:00:00]} Kf7 {[%emt 0:00:00]} 27. Bg3 {[%emt 0:00:00][%cal Oc4c5]} Rh8 {[%emt 0:00:00]} 28. Kg2 {[%emt 0:00:00][%cal Oc4c5]} Rh6 {[%emt 0:00:00]} (28... b6 $17 29. Qc2 a5) 29. c5 $15 {[%emt 0:00:00]} Rd8 {[%emt 0:00:00]} ({Black should try} 29... Bf8 $15) 30. Rc1 {[%emt 0:00:00] Active counter play!} Bf8 {[%emt 0:00:00]} 31. b4 {[%emt 0:00:00]} Be7 {[%emt 0:00:00]} 32. Qb5 {[%emt 0:00:00]} Rdh8 {[%emt 0:00:00] And now ...Rh3 would win.} 33. Qd7 {[%emt 0:00:00]} Rh3 {[%emt 0:03:58][%cal Oh3g3]} 34. Bf5 {[%emt 0:00:00] [#]} (34. Rb1 $15) 34... dxc5 {[%emt 0:02:30]} (34... Qh6 $1 $17 {[%cal Oh3g3] ( -> ...Rxg3+!)} 35. Qe6+ (35. Kf2 Rd8 $17) 35... Qxe6 36. Bxe6+ Kf6) 35. bxc5 $11 {[%emt 0:09:00] The position is equal.} Qa6 {[%emt 0:04:18]} 36. Rc2 {[%emt 0:00:00] Inhibits Qe2+. Strongly threatening d6. Really sharp!} Rxg3+ {[%emt 0:01:15]} 37. Kxg3 {[%emt 0:00:00] Intending d6 and mate.} Qf1 {[%emt 0:00:13][%csl Gf1][%cal Rh8h3]} (37... Qh6 $5 38. Qe6+ (38. Qxc7 {is a self mate.} Qh4+ 39. Kg2 Qh1+ 40. Kf2 Rh2+ 41. Ke3 Qg1+) 38... Qxe6 39. Bxe6+ Kf6 $11) 38. Bg6+ $1 {[%emt 0:00:00]} Kxg6 {[%emt 0:00:45][%csl Gf1][%cal Rh8h3] [#]} 39. Qe6+ $1 {[%emt 0:00:00]} Bf6 {[%emt 0:00:11][%csl Gf1][%cal Rh8h3]} 40. Qf5+ {[%emt 0:00:00]} Kg7 {[%emt 0:01:14][%csl Gf1][%cal Rh8h3]} 41. Qd7+ {[%emt 0:00:00]} Kf8 {[%emt 0:01:08][%csl Gf1][%cal Rh8h3]} 42. Qc8+ {[%emt 0:00:00]} Kg7 {[%emt 0:00:16][%csl Gf1][%cal Rh8h3]} 43. Qd7+ {[%emt 0:00:00] Weighted Error Value: White=0.18 (very precise) /Black=0.14 (very precise)} 1/2-1/2

[Event "13th Chennai Open 2022"]
[Site "Chennai"]
[Date "2022.06.26"]
[Round "10.1"]
[White "Fedorov, Alexei"]
[Black "Nitin, S.."]
[Result "1/2-1/2"]
[ECO "B90"]
[WhiteElo "2529"]
[BlackElo "2399"]
[Annotator "TA"]
[PlyCount "20"]
[EventDate "2022.06.19"]
[EventType "swiss"]
[EventCountry "IND"]
[SourceTitle "playchess.com"]
[Source "ChessBase"]
[SourceQuality "1"]
[TimeControl "5400+30"]

{[%evp 19,20,0,54]} 1. e4 {[%emt 0:00:04]} c5 {[%emt 0:00:52]} 2. Nc3 {[%emt 0:00:09]} a6 {[%emt 0:00:08]} 3. Nf3 {[%emt 0:00:07]} d6 {[%emt 0:00:10]} 4. d4 {[%emt 0:00:08]} cxd4 {[%emt 0:00:06]} 5. Nxd4 {[%emt 0:00:06]} Nf6 {[%emt 0:00:06]} 6. Be3 {[%emt 0:00:08]} Ng4 {[%emt 0:00:09] [#]} 7. Bc1 $146 {[%emt 0:00:27]} ({Predecessor:} 7. Bg5 h6 8. Bh4 g5 9. Bg3 Bg7 10. h3 Ne5 11. Nf5 Bxf5 12. exf5 Nbd7 13. Be2 Rc8 14. O-O O-O 15. Re1 Nf6 16. Bxe5 dxe5 17. Bd3 Qc7 18. Ne4 Rfd8 19. Qf3 {1-0 (63) Shankland,S (2718)-Salem,A (2679) Prague 2022}) 7... Nf6 {[%emt 0:00:19]} 8. Be3 {[%emt 0:00:10]} Ng4 {[%emt 0:00:10]} 9. Bc1 {[%emt 0:00:07]} Nf6 {[%emt 0:00:04]} 10. Be3 {[%emt 0:00:05]} Ng4 {[%emt 0:00:54] 10...Nbd7 is becoming the main line.} 1/2-1/2